[Event "DVM U16 2019"]
[Site "Magedburg"]
[Date "2019.12.28"]
[Round "4"]
[White "Lohvinov, Petro"]
[Black "Haufe, Laurin"]
[Result "1-0"]
[ECO "B90"]
[WhiteElo "2032"]
[BlackElo "2022"]
[Annotator "NA"]
[PlyCount "35"]
[EventDate "2019.12.27"]
[EventType "team-tourn"]
[EventRounds "7"]
[EventCountry "GER"]
[SourceTitle "playchess.com"]
[Source "ChessBase"]
[SourceQuality "1"]
[WhiteTeam "SK München Südost"]
[BlackTeam "SG Leipzig"]
[WhiteTeamCountry "UKR"]
[BlackTeamCountry "GER"]
[TimeControl "40/5400+30:1800+30"]

1. e4 {[%emt 0:00:00]} c5 {[%emt 0:00:00]} 2. Nf3 {[%emt 0:00:00]} d6 {[%emt 0:00:00]} 3. d4 {[%emt 0:00:00]} cxd4 {[%emt 0:00:00]} 4. Nxd4 {[%emt 0:00:00]} Nf6 {[%emt 0:00:00]} 5. Nc3 {[%emt 0:00:00]} a6 {[%emt 0:00:00]} 6. Be3 {[%emt 0:00:00]} e5 {[%emt 0:00:37]} 7. Nb3 {[%emt 0:00:00]} Be6 {[%emt 0:00:17]} 8. f3 {[%emt 0:00:08]} Be7 {[%emt 0:00:07]} 9. Qd2 {[%emt 0:00:05]} b5 {[%emt 0:00:48]} 10. O-O-O {[%emt 0:00:16]} O-O {[%emt 0:00:09]} 11. g4 {[%emt 0:00:20]} Nbd7 {[%emt 0:01:16]} 12. g5 {[%emt 0:00:13]} Nh5 {[%emt 0:00:29]} 13. Ne2 {[%emt 0:06:05]} a5 {[%emt 0:11:26]} 14. Ng3 {[%emt 0:11:52]} Nf4 {[%emt 0:04:41]} 15. Bxb5 {[%emt 0:04:26]} a4 {[%emt 0:03:29]} 16. Nd4 {[%emt 0:01:46]} Bxg5 {[%emt 0:07:11]} 17. Nxe6 {[%emt 0:02:39] normal} Nxe6 {[%emt 0:11:35]} 18. Bxg5 {[%emt 0:00:29]} 1-0

[Event "DVM U16 2019"]
[Site "Magedburg"]
[Date "2019.12.28"]
[Round "4"]
[White "Hundrieser, Malte"]
[Black "Gluma, Christian"]
[Result "1-0"]
[ECO "B06"]
[WhiteElo "2003"]
[BlackElo "1856"]
[Annotator "NA"]
[PlyCount "61"]
[EventDate "2019.12.27"]
[EventType "team-tourn"]
[EventRounds "7"]
[EventCountry "GER"]
[SourceTitle "playchess.com"]
[Source "ChessBase"]
[SourceQuality "1"]
[WhiteTeam "Reideburger SV 90 Halle"]
[BlackTeam "SG Bochum"]
[WhiteTeamCountry "GER"]
[TimeControl "40/5400+30:1800+30"]

1. e4 {[%emt 0:00:00]} g6 {[%emt 0:00:00]} 2. d4 {[%emt 0:00:00]} Bg7 {[%emt 0:00:00]} 3. Nc3 {[%emt 0:00:52]} c6 {[%emt 0:00:00]} 4. Nf3 {[%emt 0:01:42]} d5 5. Be2 {[%emt 0:01:09]} dxe4 {[%emt 0:01:53]} 6. Nxe4 Nd7 {[%emt 0:04:12]} 7. O-O {[%emt 0:01:26]} Ngf6 {[%emt 0:03:13]} 8. Ng3 {[%emt 0:03:16]} O-O {[%emt 0:06:55]} 9. c4 {[%emt 0:03:39]} Qc7 10. b3 e5 {[%emt 0:07:04]} 11. dxe5 {[%emt 0:09:40]} Nxe5 {[%emt 0:00:16]} 12. Bb2 {[%emt 0:07:14]} Nfg4 {[%emt 0:11:50]} 13. Nd4 {[%emt 0:01:45]} Rd8 {[%emt 0:07:46]} 14. Qc2 {[%emt 0:16:45]} h5 {[%emt 0:12:25]} 15. Bxg4 {[%emt 0:04:38]} Bxg4 16. Rae1 {[%emt 0:01:07]} h4 {[%emt 0:04:31]} 17. Nge2 h3 18. f4 {[%emt 0:04:36]} hxg2 {[%emt 0:07:17]} 19. Kxg2 {[%emt 0:00:19]} c5 {[%emt 0:13:41]} 20. fxe5 {[%emt 0:12:24]} cxd4 {[%emt 0:01:28]} 21. Nxd4 {[%emt 0:01:01]} Bxe5 {[%emt 0:00:54]} 22. Qe4 {[%emt 0:00:43]} Bxd4 {[%emt 0:00:30]} 23. Bxd4 {[%emt 0:00:30]} Qd7 {[%emt 0:02:24]} 24. Rf4 {[%emt 0:08:45]} Re8 {[%emt 0:00:47]} 25. Be5 {[%emt 0:04:46]} Bf5 {[%emt 0:04:28]} 26. Qd5 Qe7 {[%emt 0:01:11]} 27. Rxf5 {[%emt 0:08:42]} gxf5 {[%emt 0:00:30]} 28. Re3 {[%emt 0:00:54]} f4 {[%emt 0:03:49]} 29. Bxf4 Qh4 {[%emt 0:01:42]} 30. Rg3+ {[%emt 0:02:16]} Kh8 {[%emt 0:02:52]} 31. Be5+ {[%emt 0:02:45] normal} 1-0

[Event "DVM U16 2019"]
[Site "Magedburg"]
[Date "2019.12.28"]
[Round "4"]
[White "Fidlin, Simon"]
[Black "Kotyk, Michael"]
[Result "1/2-1/2"]
[ECO "C76"]
[WhiteElo "1907"]
[BlackElo "2103"]
[Annotator "NA"]
[PlyCount "54"]
[EventDate "2019.12.27"]
[EventType "team-tourn"]
[EventRounds "7"]
[EventCountry "GER"]
[SourceTitle "playchess.com"]
[Source "ChessBase"]
[SourceQuality "1"]
[WhiteTeam "Karlsruher SF"]
[BlackTeam "Hamburger SK"]
[BlackTeamCountry "GER"]
[TimeControl "40/5400+30:1800+30"]

1. e4 e5 2. Nf3 Nc6 3. Bb5 a6 4. Ba4 d6 5. c3 Bd7 6. d4 g6 7. O-O Bg7 8. Re1 Nf6 9. Nbd2 O-O 10. Bb3 exd4 11. cxd4 Bg4 12. h3 Bxf3 13. Nxf3 Re8 14. Qd3 Na5 15. Bc2 c5 16. d5 b5 17. Rb1 c4 18. Qd1 Nb7 19. Nd4 Nc5 20. Nc6 Qb6 21. Bf4 Nfxe4 22. Qf3 f5 23. g4 Kh8 24. gxf5 gxf5 25. Kh2 Qc7 26. Be3 Qf7 27. Rg1 Rg8 {normal} 1/2-1/2

[Event "DVM U16 2019"]
[Site "Magedburg"]
[Date "2019.12.28"]
[Round "4"]
[White "Wang, Ruiming"]
[Black "Costa, Leonardo"]
[Result "0-1"]
[ECO "C55"]
[WhiteElo "1808"]
[BlackElo "2048"]
[Annotator "NA"]
[PlyCount "86"]
[EventDate "2019.12.27"]
[EventType "team-tourn"]
[EventRounds "7"]
[EventCountry "GER"]
[SourceTitle "playchess.com"]
[Source "ChessBase"]
[SourceQuality "1"]
[WhiteTeam "SG Leipzig"]
[BlackTeam "SK München Südost"]
[WhiteTeamCountry "GER"]
[BlackTeamCountry "GER"]
[TimeControl "40/5400+30:1800+30"]

1. e4 {[%emt 0:00:00]} e5 {[%emt 0:00:00]} 2. Nf3 {[%emt 0:00:00]} Nc6 {[%emt 0:00:00]} 3. d4 {[%emt 0:00:00]} exd4 {[%emt 0:00:00]} 4. Bc4 {[%emt 0:00:00]} Nf6 {[%emt 0:00:00]} 5. e5 {[%emt 0:00:00]} Ng4 {[%emt 0:00:00]} 6. O-O {[%emt 0:00:07]} Be7 {[%emt 0:00:16]} 7. Re1 {[%emt 0:00:09]} d6 {[%emt 0:02:16]} 8. exd6 {[%emt 0:00:23]} cxd6 {[%emt 0:00:20]} 9. Bg5 {[%emt 0:00:37]} Nge5 {[%emt 0:04:11]} 10. Bxe7 {[%emt 0:01:08]} Qxe7 {[%emt 0:00:05]} 11. Na3 {[%emt 0:13:55]} O-O {[%emt 0:14:38]} 12. Nxd4 {[%emt 0:01:14]} Nxd4 {[%emt 0:14:12]} 13. Qxd4 {[%emt 0:01:37]} Qg5 {[%emt 0:03:40]} 14. Bd5 {[%emt 0:04:54]} Be6 {[%emt 0:05:38]} 15. f4 {[%emt 0:12:19]} Qg4 {[%emt 0:11:08]} 16. h3 {[%emt 0:02:13]} Qh4 {[%emt 0:00:07]} 17. Rad1 {[%emt 0:12:49]} Ng6 {[%emt 0:06:12]} 18. Bxe6 {[%emt 0:14:21]} fxe6 {[%emt 0:00:39]} 19. Rxe6 {[%emt 0:03:05]} Nxf4 {[%emt 0:01:26]} 20. Re3 {[%emt 0:01:03]} Qg5 {[%emt 0:03:53]} 21. Rd2 {[%emt 0:07:09]} h5 {[%emt 0:08:53]} 22. Rf2 {[%emt 0:07:42]} Rf6 {[%emt 0:03:19]} 23. Kh2 {[%emt 0:05:03]} h4 {[%emt 0:02:41]} 24. Ref3 {[%emt 0:02:09]} Raf8 {[%emt 0:00:08]} 25. Qc4+ {[%emt 0:04:41]} d5 {[%emt 0:01:11]} 26. Qf1 {[%emt 0:00:09]} Qe5 {[%emt 0:03:53]} 27. Kh1 {[%emt 0:01:16]} Nh5 {[%emt 0:03:20]} 28. Kg1 {[%emt 0:01:41]} Ng3 {[%emt 0:00:24]} 29. Qd1 {[%emt 0:00:31]} Rxf3 {[%emt 0:02:28]} 30. gxf3 {[%emt 0:00:25]} Qxb2 {[%emt 0:03:08]} 31. Nb1 {[%emt 0:01:23]} Qe5 {[%emt 0:02:13]} 32. Nd2 {[%emt 0:00:48]} Rf6 {[%emt 0:00:47]} 33. f4 {[%emt 0:01:34]} Rxf4 {[%emt 0:02:58]} 34. Nf3 {[%emt 0:00:11]} Qe6 {[%emt 0:00:48]} 35. Ng5 {[%emt 0:00:30]} Qe5 {[%emt 0:00:31]} 36. Nf3 {[%emt 0:00:37]} Qf5 {[%emt 0:00:28]} 37. Nxh4 {[%emt 0:00:45]} Qe4 {[%emt 0:01:29]} 38. Nf3 {[%emt 0:00:27]} Kh8 {[%emt 0:00:45]} 39. Kh2 {[%emt 0:00:21]} Nf5 {[%emt 0:00:33]} 40. Kg1 {[%emt 0:01:33]} d4 {[%emt 0:00:38]} 41. Ng5 {[%emt 0:14:39]} Qe3 {[%emt 0:01:27]} 42. Qh5+ {[%emt 0:00:16]} Nh6 {[%emt 0:00:06]} 43. Nf3 {[%emt 0:00:11]} Rf5 {[%emt 0:00:59] normal} 0-1

[Event "DVM U16 2019"]
[Site "Magedburg"]
[Date "2019.12.28"]
[Round "4"]
[White "Klaas, Heiko"]
[Black "Kravtsov, Maksim"]
[Result "1/2-1/2"]
[ECO "C07"]
[WhiteElo "1759"]
[BlackElo "1784"]
[Annotator "NA"]
[PlyCount "62"]
[EventDate "2019.12.27"]
[EventType "team-tourn"]
[EventRounds "7"]
[EventCountry "GER"]
[SourceTitle "playchess.com"]
[Source "ChessBase"]
[SourceQuality "1"]
[WhiteTeam "Hamburger SK"]
[BlackTeam "Karlsruher SF"]
[WhiteTeamCountry "GER"]
[BlackTeamCountry "RUS"]
[TimeControl "40/5400+30:1800+30"]

1. e4 e6 2. d4 d5 3. Nd2 {[%emt 0:00:28]} c5 {[%emt 0:02:36]} 4. exd5 {[%emt 0:02:11]} Qxd5 {[%emt 0:00:05]} 5. dxc5 {[%emt 0:00:22]} Bxc5 {[%emt 0:07:48]} 6. Ngf3 {[%emt 0:00:52]} Nf6 {[%emt 0:12:32]} 7. Bc4 {[%emt 0:01:37]} Qh5 {[%emt 0:07:00]} 8. O-O {[%emt 0:03:58]} Bd7 {[%emt 0:04:12]} 9. Nb3 {[%emt 0:05:01]} Bc6 {[%emt 0:06:05]} 10. Nxc5 {[%emt 0:02:34]} Qxc5 {[%emt 0:01:49]} 11. b3 {[%emt 0:02:16]} Nbd7 {[%emt 0:02:28]} 12. Nd4 {[%emt 0:05:33]} Nb6 {[%emt 0:13:05]} 13. Nxc6 {[%emt 0:03:34]} Qxc6 {[%emt 0:00:42]} 14. Bd3 {[%emt 0:02:12]} O-O-O {[%emt 0:02:15]} 15. Bb2 {[%emt 0:07:59]} Nbd5 {[%emt 0:01:43]} 16. Qf3 {[%emt 0:00:34]} Nb4 {[%emt 0:05:29]} 17. Be2 {[%emt 0:04:57]} Qxf3 {[%emt 0:01:14]} 18. Bxf3 {[%emt 0:00:09]} Kb8 {[%emt 0:00:12]} 19. c4 {[%emt 0:01:01]} Nd3 {[%emt 0:01:52]} 20. Bc3 {[%emt 0:02:53]} e5 {[%emt 0:01:02]} 21. g3 {[%emt 0:02:27]} Rhe8 {[%emt 0:00:56]} 22. Rad1 {[%emt 0:05:58]} e4 {[%emt 0:10:07]} 23. Bg2 {[%emt 0:01:30]} h5 {[%emt 0:02:37]} 24. Rd2 {[%emt 0:03:20]} Ng4 {[%emt 0:03:31]} 25. Bxg7 {[%emt 0:10:01]} f5 {[%emt 0:00:35]} 26. h3 {[%emt 0:01:35]} e3 {[%emt 0:00:33]} 27. fxe3 {[%emt 0:00:23]} Nxe3 {[%emt 0:00:05]} 28. Rb1 {[%emt 0:02:03]} Rg8 {[%emt 0:00:59]} 29. Bf6 {[%emt 0:03:15]} Rd7 {[%emt 0:00:04]} 30. Kh2 {[%emt 0:02:42]} Rg6 {[%emt 0:04:38]} 31. Bc3 {[%emt 0:08:49]} h4 {[%emt 0:01:33] normal} 1/2-1/2

[Event "DVM U16 2019"]
[Site "Magedburg"]
[Date "2019.12.28"]
[Round "4"]
[White "Möller, Maurin"]
[Black "Baranyai-Molnar, Adam-Kristof"]
[Result "1-0"]
[ECO "B23"]
[WhiteElo "1629"]
[BlackElo "1756"]
[Annotator "NA"]
[PlyCount "69"]
[EventDate "2019.12.27"]
[EventType "team-tourn"]
[EventRounds "7"]
[EventCountry "GER"]
[SourceTitle "playchess.com"]
[Source "ChessBase"]
[SourceQuality "1"]
[WhiteTeam "SK BS Paderborn"]
[BlackTeam "SF Neuberg"]
[TimeControl "40/5400+30:1800+30"]

1. e4 c5 2. Nc3 e6 3. f4 d5 4. e5 Nc6 5. Nf3 Nge7 6. Be2 a6 7. a4 Nf5 8. O-O h5 9. Re1 h4 10. Bf1 h3 11. g3 c4 12. d3 Qb6+ 13. Kh1 Bc5 14. Re2 Ncd4 15. Re1 Nxf3 16. Qxf3 Bd7 17. a5 Qa7 18. dxc4 d4 19. Ne4 Bc6 20. Bd3 O-O-O 21. Bd2 Ne3 22. b4 Ng2 23. Reb1 f5 24. exf6 gxf6 25. bxc5 f5 26. Rb6 Qb8 27. Rab1 Qc7 28. Nd6+ Rxd6 29. cxd6 Bxf3 30. dxc7 Nxf4+ 31. Kg1 Nxd3 32. cxd3 Re8 33. Re1 e5 34. Bf4 e4 35. Rd6 {normal} 1-0

[Event "DVM U16 2019"]
[Site "Magedburg"]
[Date "2019.12.28"]
[Round "4"]
[White "Emmerich, Julian"]
[Black "Klahold, Rona"]
[Result "1-0"]
[ECO "C44"]
[WhiteElo "1270"]
[BlackElo "1541"]
[Annotator "NA"]
[PlyCount "89"]
[EventDate "2019.12.27"]
[EventType "team-tourn"]
[EventRounds "7"]
[EventCountry "GER"]
[SourceTitle "playchess.com"]
[Source "ChessBase"]
[SourceQuality "1"]
[WhiteTeam "SF Neuberg"]
[BlackTeam "SK BS Paderborn"]
[TimeControl "40/5400+30:1800+30"]

1. e4 {[%emt 0:00:00]} e5 {[%emt 0:00:00]} 2. Nf3 {[%emt 0:00:00]} Nc6 {[%emt 0:00:07]} 3. d4 {[%emt 0:00:00]} exd4 {[%emt 0:00:24]} 4. Nxd4 {[%emt 0:00:00]} Qh4 {[%emt 0:00:30]} 5. Nc3 {[%emt 0:00:50]} Bb4 {[%emt 0:00:34]} 6. Be2 {[%emt 0:02:00]} Qxe4 {[%emt 0:02:42]} 7. Ndb5 {[%emt 0:15:50]} Kd8 {[%emt 0:05:46]} 8. O-O {[%emt 0:05:43]} Bxc3 {[%emt 0:05:01]} 9. Nxc3 {[%emt 0:09:13]} Qd4 {[%emt 0:02:42]} 10. Bd3 {[%emt 0:02:10]} d6 {[%emt 0:09:41]} 11. Nb5 {[%emt 0:08:58]} Qf6 {[%emt 0:02:07]} 12. Re1 {[%emt 0:04:33]} Nge7 {[%emt 0:03:28]} 13. Bd2 {[%emt 0:02:14]} Bf5 {[%emt 0:06:49]} 14. Bc3 {[%emt 0:07:07]} Qg6 {[%emt 0:06:24]} 15. Re3 {[%emt 0:04:35]} Nd5 {[%emt 0:12:20]} 16. Bxf5 {[%emt 0:02:35]} Nxe3 {[%emt 0:07:12]} 17. Bxg6 {[%emt 0:00:52]} Nxd1 {[%emt 0:03:06]} 18. Bxg7 {[%emt 0:00:13]} Rg8 {[%emt 0:01:25]} 19. Bf6+ {[%emt 0:00:07]} Ne7 {[%emt 0:01:14]} 20. Bxh7 {[%emt 0:03:17]} Re8 {[%emt 0:02:53]} 21. Rxd1 {[%emt 0:02:45]} Kd7 {[%emt 0:00:21]} 22. Bxe7 {[%emt 0:10:57]} Rxe7 {[%emt 0:00:43]} 23. Bf5+ {[%emt 0:00:17]} Kc6 {[%emt 0:00:36]} 24. Nd4+ {[%emt 0:00:14]} Kb6 {[%emt 0:01:05]} 25. Kf1 {[%emt 0:00:33]} Rae8 {[%emt 0:00:34]} 26. Nf3 {[%emt 0:02:04]} Kc5 {[%emt 0:01:07]} 27. Re1 {[%emt 0:01:18]} Rxe1+ {[%emt 0:00:22]} 28. Nxe1 {[%emt 0:00:06]} Kd5 {[%emt 0:00:53]} 29. Nd3 {[%emt 0:00:17]} c5 {[%emt 0:01:17]} 30. f4 {[%emt 0:02:30]} c4 {[%emt 0:01:56]} 31. Ne1 {[%emt 0:00:46]} Kd4 {[%emt 0:01:01]} 32. Kf2 {[%emt 0:00:41]} c3 {[%emt 0:01:39]} 33. b3 {[%emt 0:00:37]} Re7 {[%emt 0:00:51]} 34. h4 {[%emt 0:00:42]} Rc7 {[%emt 0:01:05]} 35. h5 {[%emt 0:00:23]} Kc5 {[%emt 0:02:09]} 36. Nd3+ {[%emt 0:00:15]} Kb5 {[%emt 0:00:30]} 37. h6 {[%emt 0:00:08]} a5 {[%emt 0:04:29]} 38. h7 {[%emt 0:00:07]} a4 {[%emt 0:00:07]} 39. h8=Q {[%emt 0:00:05]} axb3 {[%emt 0:00:20]} 40. axb3 {[%emt 0:00:09]} b6 {[%emt 0:00:51]} 41. Qf6 {[%emt 0:30:19]} Ra7 {[%emt 0:30:25]} 42. Qxd6 {[%emt 0:00:44]} Ra2 {[%emt 0:00:28]} 43. Bd7+ {[%emt 0:00:47]} Ka6 {[%emt 0:00:25]} 44. Nb4+ {[%emt 0:01:28]} Ka7 {[%emt 0:00:30]} 45. Qc7+ {[%emt 0:00:47] normal Ra5} 1-0

[Event "DVM U16 2019"]
[Site "Magedburg"]
[Date "2019.12.29"]
[Round "5"]
[White "Nguyen, Alex Dac-Vuong"]
[Black "Woelk, Tom-Frederic"]
[Result "1-0"]
[ECO "C55"]
[WhiteElo "2409"]
[BlackElo "2245"]
[Annotator "NA"]
[PlyCount "111"]
[EventDate "2019.12.27"]
[EventType "team-tourn"]
[EventRounds "7"]
[EventCountry "GER"]
[SourceTitle "playchess.com"]
[Source "ChessBase"]
[SourceQuality "1"]
[WhiteTeam "SG Leipzig"]
[BlackTeam "Hamburger SK"]
[WhiteTeamCountry "GER"]
[BlackTeamCountry "GER"]
[TimeControl "40/5400+30:1800+30"]

1. e4 {[%emt 0:00:00]} e5 {[%emt 0:00:00]} 2. Nf3 {[%emt 0:00:00]} Nc6 {[%emt 0:00:00]} 3. Bc4 {[%emt 0:00:00]} Nf6 {[%emt 0:00:00]} 4. d3 {[%emt 0:00:00]} Be7 {[%emt 0:00:14]} 5. O-O {[%emt 0:00:06]} O-O {[%emt 0:00:14]} 6. Re1 {[%emt 0:00:16]} d6 {[%emt 0:00:05]} 7. a4 {[%emt 0:00:04]} Na5 {[%emt 0:01:58]} 8. Ba2 {[%emt 0:00:15] C55: Two Knights: 4 d3, 4 d4 exd4 5 e5 and Max Lange Attack} c5 {[%emt 0:00:03]} 9. c3 {[%emt 0:00:14] unterminated} Nc6 {[%emt 0:12:00] unterminated} 10. Na3 {[%emt 0:03:56] unterminated} a6 {[%emt 0:01:18] unterminated} 11. Nc2 {[%emt 0:04:31] unterminated} h6 {[%emt 0:01:44] unterminated} 12. d4 $146 {[%emt 0:08:42] unterminated} ({Predecessor:} 12. Ne3 Re8 13. h3 Bf8 14. Nd5 Rb8 15. Be3 Be6 {½-½ (43) Van Foreest,J (2629)-Harikrishna,P (2744) Riadh 2017}) 12... cxd4 {[%emt 0:18:58] unterminated} 13. cxd4 {[%emt 0:00:14]} Bg4 {[%emt 0:00:16]} 14. d5 {[%emt 0:00:59] unterminated} Nb8 {[%emt 0:02:08] unterminated} 15. h3 {[%emt 0:03:08]} Bh5 {[%emt 0:00:13] unterminated} 16. Bb1 {[%emt 0:12:22]} Nbd7 {[%emt 0:00:43] unterminated} 17. a5 {[%emt 0:00:20] unterminated} Nc5 {[%emt 0:02:48]} 18. Nb4 {[%emt 0:00:12] unterminated} Bg6 {[%emt 0:01:47]} 19. Nd2 {[%emt 0:00:46] unterminated} Rc8 {[%emt 0:01:26] unterminated} 20. Ra3 {[%emt 0:03:46] unterminated} Qd7 {[%emt 0:02:23] unterminated} 21. Na2 {[%emt 0:04:48] unterminated} Qd8 {[%emt 0:03:06] unterminated} 22. b4 {[%emt 0:02:00]} Ncd7 {[%emt 0:00:04]} 23. Bd3 {[%emt 0:01:23] unterminated} Nh7 {[%emt 0:01:00] unterminated} 24. Nc4 {[%emt 0:05:03] unterminated} f5 {[%emt 0:03:04] unterminated} 25. exf5 {[%emt 0:04:48]} Bxf5 {[%emt 0:00:28] unterminated} 26. Bxf5 {[%emt 0:08:22]} Rxf5 {[%emt 0:00:02]} 27. Qg4 {[%emt 0:00:13] unterminated} Rf7 $1 {[%emt 0:01:45] unterminated} 28. Nc3 {[%emt 0:00:50] unterminated} Nhf6 {[%emt 0:08:18]} 29. Qe2 {[%emt 0:00:15] unterminated} b5 {[%emt 0:02:35] unterminated} (29... Qc7 $14 30. Ne3 Ne8) 30. axb6 $1 {[%emt 0:00:45]} Nxb6 {[%emt 0:00:25]} 31. Ne3 {[%emt 0:00:30]} Qc7 {[%emt 0:19:32]} 32. Bd2 {[%emt 0:03:05]} Nc4 {[%emt 0:02:33]} 33. Rxa6 {[%emt 0:02:27]} Qb7 {[%emt 0:02:54]} 34. Rc6 {[%emt 0:00:14]} Nxe3 {[%emt 0:00:07]} 35. Rxc8+ {[%emt 0:00:28]} Qxc8 {[%emt 0:00:01] unterminated} 36. fxe3 {[%emt 0:04:01]} Bd8 {[%emt 0:01:09] unterminated} 37. Rc1 {[%emt 0:04:25] unterminated} Rc7 {[%emt 0:02:36] unterminated} 38. Qd3 {[%emt 0:04:12] unterminated} e4 {[%emt 0:01:44] unterminated} 39. Qb1 {[%emt 0:04:11] unterminated} Rc4 {[%emt 0:01:19] unterminated} 40. Qb3 {[%emt 0:09:34] unterminated} Nxd5 $18 {[%emt 0:08:13]} (40... Nd7 $16 {keeps fighting.}) 41. Nxd5 {[%emt 0:31:12]} Rxc1+ {[%emt 0:30:01]} 42. Bxc1 {[%emt 0:00:06]} Qxc1+ {[%emt 0:00:01]} 43. Kh2 {[%emt 0:00:11]} Kh7 {[%emt 0:00:00]} 44. b5 {[%emt 0:00:00]} Bh4 {[%emt 0:00:00]} 45. Qb4 {[%emt 0:00:00]} Bf2 {[%emt 0:00:00]} 46. Qxe4+ {[%emt 0:00:00]} Kh8 {[%emt 0:00:00]} 47. Qe8+ {[%emt 0:00:00]} Kh7 {[%emt 0:00:00]} 48. Nf6+ {[%emt 0:00:00]} gxf6 {[%emt 0:00:00]} 49. Qf7+ {[%emt 0:00:00]} Kh8 {[%emt 0:00:00]} 50. Qxf6+ {[%emt 0:00:00]} Kh7 {[%emt 0:00:00]} 51. Qf7+ {[%emt 0:00:00]} Kh8 {[%emt 0:00:00]} 52. Qxf2 {[%emt 0:00:00]} Qc5 {[%emt 0:00:00]} 53. Qb2+ {[%emt 0:00:00]} Kh7 {[%emt 0:00:00]} 54. b6 {[%emt 0:00:00]} Qxe3 {[%emt 0:00:00] normal} 55. b7 {[%emt 0:00:00]} Qf4+ {[%emt 0:00:00]} 56. g3 {[%emt 0:00:00] normal} 1-0

[Event "DVM U16 2019"]
[Site "Magedburg"]
[Date "2019.12.29"]
[Round "5"]
[White "Bethke, Richard"]
[Black "Krastev, Alexander"]
[Result "0-1"]
[ECO "C71"]
[WhiteElo "2332"]
[BlackElo "2323"]
[Annotator "ChessBase"]
[PlyCount "53"]
[EventDate "2019.12.27"]
[EventType "team-tourn"]
[EventRounds "7"]
[EventCountry "GER"]
[SourceTitle "playchess.com"]
[Source "ChessBase"]
[SourceQuality "1"]
[WhiteTeam "SF Neuberg"]
[BlackTeam "Biebertaler SF"]
[WhiteTeamCountry "GER"]
[BlackTeamCountry "GER"]
[TimeControl "40/5400+30:1800+30"]

1. e4 {[%emt 0:00:00]} e5 {[%emt 0:00:00]} 2. Nf3 {[%emt 0:00:00]} Nc6 {[%emt 0:00:00]} 3. Bb5 {[%emt 0:00:00]} a6 {[%emt 0:00:00]} 4. Ba4 {[%emt 0:00:00]} d6 {[%emt 0:00:43]} 5. d4 {[%emt 0:00:37]} b5 {[%emt 0:01:29]} 6. Bb3 {[%emt 0:00:04]} Nxd4 {[%emt 0:00:31]} 7. Nxd4 {[%emt 0:00:22]} exd4 {[%emt 0:00:04]} 8. Qxd4 {[%emt 0:01:35]} c5 {[%emt 0:00:08]} 9. Qd5 {[%emt 0:00:40]} Be6 {[%emt 0:00:04]} 10. Qc6+ {[%emt 0:06:08]} Bd7 {[%emt 0:00:05]} 11. Qd5 {[%emt 0:00:12]} c4 {[%emt 0:00:04]} 12. Bxc4 {[%emt 0:00:03]} bxc4 {[%emt 0:00:03]} 13. Qxc4 {[%emt 0:00:05]} Nf6 {[%emt 0:01:41]} 14. Nc3 {[%emt 0:00:16]} Be7 {[%emt 0:00:26]} 15. O-O {[%emt 0:00:47]} O-O {[%emt 0:00:08]} 16. Rd1 {[%emt 0:01:47]} Qb6 {[%emt 0:09:25]} 17. a4 {[%emt 0:02:54]} Rfc8 {[%emt 0:00:45]} 18. Qd3 {[%emt 0:00:26]} Qb7 {[%emt 0:08:54]} 19. Qd4 {[%emt 0:02:33]} Be6 {[%emt 0:02:01]} 20. b3 {[%emt 0:04:11]} Qa7 {[%emt 0:18:16]} 21. Qd2 {[%emt 0:02:38]} Rc6 {[%emt 0:10:09]} 22. Bb2 {[%emt 0:06:11]} Rac8 {[%emt 0:00:07]} 23. Ra3 {[%emt 0:08:29]} Nxe4 {[%emt 0:10:21]} 24. Nxe4 {[%emt 0:00:36]} Rxc2 {[%emt 0:00:05]} 25. Qf4 {[%emt 0:02:28]} Rxb2 {[%emt 0:00:49]} 26. b4 {[%emt 0:01:02] normal} d5 {[%emt 0:00:58]} 27. Qe5 {[%emt 0:00:52] normal} 0-1

[Event "DVM U16 2019"]
[Site "Magedburg"]
[Date "2019.12.29"]
[Round "5"]
[White "Post, Hugo"]
[Black "Huber, Benedikt"]
[Result "1-0"]
[ECO "B12"]
[WhiteElo "2181"]
[BlackElo "2133"]
[Annotator "ChessBase"]
[PlyCount "55"]
[EventDate "2019.12.27"]
[EventType "team-tourn"]
[EventRounds "7"]
[EventCountry "GER"]
[SourceTitle "playchess.com"]
[Source "ChessBase"]
[SourceQuality "1"]
[WhiteTeam "Reideburger SV 90 Halle"]
[BlackTeam "SK München Südost"]
[WhiteTeamCountry "GER"]
[BlackTeamCountry "GER"]
[TimeControl "40/5400+30:1800+30"]

1. e4 {[%emt 0:00:00]} c6 {[%emt 0:00:00]} 2. d4 {[%emt 0:00:00]} d5 {[%emt 0:00:04]} 3. e5 {[%emt 0:01:21]} c5 {[%emt 0:00:31]} 4. c3 {[%emt 0:02:33]} Nc6 {[%emt 0:00:36]} 5. f4 {[%emt 0:08:36]} cxd4 {[%emt 0:13:46]} 6. cxd4 {[%emt 0:00:17]} Nh6 {[%emt 0:00:11]} 7. Nc3 {[%emt 0:06:29]} Bg4 {[%emt 0:01:19]} 8. Be2 {[%emt 0:01:34]} Bxe2 {[%emt 0:00:42]} 9. Ngxe2 {[%emt 0:01:45]} e6 {[%emt 0:00:53]} 10. O-O {[%emt 0:01:41]} Qb6 {[%emt 0:10:58]} 11. Kh1 {[%emt 0:10:29]} O-O-O 12. Na4 {[%emt 0:08:22]} Qa6 {[%emt 0:16:07]} 13. Be3 {[%emt 0:03:27]} Nf5 {[%emt 0:00:44]} 14. Bg1 {[%emt 0:00:34]} h5 {[%emt 0:00:22]} 15. g3 {[%emt 0:05:09]} Be7 {[%emt 0:00:53]} 16. a3 {[%emt 0:08:57]} Kb8 {[%emt 0:03:45]} 17. b4 {[%emt 0:01:32]} Ka8 {[%emt 0:01:48]} 18. Rb1 {[%emt 0:06:50]} b5 {[%emt 0:00:57]} 19. Nc5 {[%emt 0:02:39]} Bxc5 {[%emt 0:00:15]} 20. bxc5 {[%emt 0:00:22]} Qxa3 {[%emt 0:02:54]} 21. Ra1 {[%emt 0:00:29]} Qb4 {[%emt 0:02:05]} 22. Rf3 {[%emt 0:02:18]} Na5 {[%emt 0:26:32]} 23. Rfa3 {[%emt 0:02:41]} Nc4 {[%emt 0:00:11]} 24. Rxa7+ {[%emt 0:02:29]} Kb8 {[%emt 0:00:04]} 25. Ra8+ {[%emt 0:00:57]} Kb7 {[%emt 0:00:08]} 26. R1a7+ {[%emt 0:00:52]} Kc6 {[%emt 0:00:06]} 27. Rxd8 {[%emt 0:03:32]} Rxd8 {[%emt 0:01:09]} 28. Qa1 {[%emt 0:00:21] normal} 1-0